Cogmind - Beta 10.2 @@@ ROGUE MODE // 2021.07.17 @ 16:22:02 // Halloween2020/ForbiddenLore Player: Cyurio Result: Self-destructed Performance ------------- Evolutions (1) 500 Regions Visited (2) 400 Robots Destroyed (19) 95 Value Destroyed (691) 691 Prototype IDs (0) 0 Alien Tech Used (0) 0 Bonus (0) 0 TOTAL SCORE: 1686 Bonus ------- None Cogmind --------- Core Integrity 192/400 Matter 231/300 Energy 250/250 System Corruption 0% Temperature Cool (0) Movement Walking (120) Location -9/Materials Parts ------- > --- POWER (1) -------- Ion Engine > --- PROPULSION (3) --- Aluminum Leg Aluminum Leg Aluminum Leg > --- UTILITY (3) ------ Improved Heat Sink Small Storage Unit Medium Storage Unit > --- WEAPON (2) ------- Particle Gun Heavy Assault Rifle > --- INVENTORY (10) --- Improved Ion Engine Aluminum Leg Aluminum Leg Aluminum Leg Aluminum Leg Hover Unit Small Battery (100) Hammer Peak State ------------ > --- POWER ------------ Improved Ion Engine > --- PROPULSION ------- Aluminum Leg Aluminum Leg Aluminum Leg > --- UTILITY ---------- Improved Heat Sink Small Storage Unit Small Battery > --- WEAPON ----------- Heavy EM Pulse Gun Heavy Assault Rifle > --- INVENTORY -------- Ion Engine Aluminum Leg Aluminum Leg Hover Unit [Rating: 14] Favorites ----------- Power Ion Engine Engine Ion Engine Power Core Light Nuclear Core Propulsion Aluminum Leg Leg Aluminum Leg Utility Small Storage Unit Device Improved Heat Sink Storage Small Storage Unit Processor Visual Processing Unit Weapon Assault Rifle Energy Gun Heavy EM Pulse Gun Energy Cannon Beam Cannon Ballistic Gun Assault Rifle Build | -11 -10 -9 ------- Run | Scr Mat Mat Slots Evolved 2 | . . 2 Power . | . . . Propulsion 1 | . . 1 Utility 1 | . . 1 Weapon . | . . . Parts Attached 35 | . 9 26 Power 5 | . 1 4 Engine 4 | . . 4 Core 1 | . 1 . Reactor . | . . . Propulsion 17 | . 4 13 Treads . | . . . Leg 17 | . 4 13 Wheel . | . . . Hover . | . . . Flight . | . . . Utility 5 | . 2 3 Device 1 | . . 1 Storage 3 | . 2 1 Processor 1 | . . 1 Hackware . | . . . Protection . | . . . Artifact . | . . . Weapon 8 | . 2 6 Energy Gun 4 | . 1 3 Energy Cannon 1 | . . 1 Ballistic Gun 3 | . 1 2 Ballistic Cannon . | . . . Launcher . | . . . Special Weapon . | . . . Impact Weapon . | . . . Slashing Weapon . | . . . Piercing Weapon . | . . . Special Melee Weapon . | . . . Unidentified Prototypes . | . . . Parts Lost 15 | . 4 11 Power 3 | . 1 2 Propulsion 6 | . 2 4 Utility . | . . . Weapon 6 | . 1 5 Highest Loss Streak 8 | . 3 8 Average Slot Usage (%) 91 | . 97 85 Engine 9 | . 10 7 Core 2 | . 3 1 Leg 27 | . 27 27 Device 3 | . . 6 Storage 23 | . 25 22 Processor 1 | . . 2 Energy Gun 4 | . 2 7 Ballistic Gun 17 | . 25 7 Naked Turns . | . . . Heaviest Build 24 | 12 13 24 Greatest Support 30 | 20 20 30 Greatest Overweight (x) 2 | . 1 2 Average Overweight (x) . | . . . Largest Inventory Capacity 10 | 6 6 10 Average Capacity 6 | 6 6 7 Most Carried 8 | 6 6 8 Average Carried 4 | 6 5 4 Final Capacity 10 | 6 6 10 Final Carried 8 | 6 6 8 Class Distribution -------------------- 74% | Mutant 25% | Scavenger-Mutant Dominant Class ---------------- Mutant | -10/Materials Scavenger-Mutant | -9/Materials Resources | -11 -10 -9 ----------- Run | Scr Mat Mat Matter Collected 753 | 178 287 288 Remotely . | . . . Salvage Created 860 | . 378 482 Parts 50 | . 24 26 Haulers Intercepted . | . . . Recyclers Shooed 1 | . 1 . Parts Field Recycled . | . . . Retrieved Matter . | . . . Parts Self-Destructed . | . . . Prevented . | . . . Kills | -11 -10 -9 ------- Run | Scr Mat Mat Combat Hostiles Destroyed 18 | . 8 10 Guns 14 | . 8 6 Cannons 4 | . . 4 Classes Destroyed 4 | . 2 2 Watcher 1 | . 1 . Grunt 15 | . 8 7 Brawler 1 | . . 1 Sentry 2 | . . 2 Best Kill Streak 4 | . 2 4 Combat Bots Only 4 | . 2 4 Max Kills in Single Turn 1 | . 1 1 Gunslinging . | . . . Exploded . | . . . Melee . | . . . Uniques/NPCs Destroyed . | . . . Combat | -11 -10 -9 -------- Run | Scr Mat Mat Damage Taken 1873 | . 740 1133 Core 290 | . 82 208 Absorbed by Shields . | . . . Core Remaining (%) 83 | 100 67 . Volleys Fired 103 | . 52 51 Largest 2 | . 2 2 Hottest 80 | . 60 80 Shots Fired 179 | . 104 75 Gun 160 | . 104 56 Cannon 19 | . . 19 Launcher . | . . . Special . | . . . Kinetic 135 | . 101 34 Thermal 27 | . 3 24 Explosive . | . . . Electromagnetic 17 | . . 17 Robot Hit Streak 14 | . 8 14 Robot Miss Streak 4 | . 3 4 Penetration Max . | . . . Secondary Targets 1 | . . 1 Max Gunslinging Chain 1 | . . 1 Shots Hit Robots 125 | . 70 55 Core Hits 42 | . 23 19 Critical Hits . | . . . Critical Kills . | . . . Critical Parts Destroyed . | . . . Melee Attacks . | . . . Impact . | . . . Slashing . | . . . Piercing . | . . . Sneak Attacks . | . . . Combat Hostiles . | . . . Follow-up Attacks . | . . . Damage Inflicted 1456 | . 616 840 Guns 1142 | . 616 526 Cannons 297 | . . 297 Explosions . | . . . Melee . | . . . Ramming 17 | . . 17 Kinetic 956 | . 606 350 Thermal 349 | . 10 339 Explosive . | . . . Electromagnetic 134 | . . 134 Impact . | . . . Slashing . | . . . Piercing . | . . . Highest Corruption . | . . . Average Corruption . | . . . Corruption Purged . | . . . Overload Shots . | . . . Overflow Damage . | . . . Projectiles . | . . . Explosions . | . . . Melee . | . . . Knockbacks 1 | . . 1 Impact 1 | . . 1 Kinetic . | . . . Secondary . | . . . Self-Inflicted Damage 5 | . . 5 Shots . | . . . Rammed 3 | . . 3 Targets Rammed 4 | . . 4 Kicked 1 | . . 1 Crushed . | . . . Highest Temperature 334 | . 20 334 Average Temperature 71 | . 8 132 Received Heat Transfer 954 | . 417 537 Effects 2 | . . 2 Shutdowns 1 | . . 1 Matter Decay 1 | . . 1 Siege Activations . | . . . Robots Corrupted . | . . . Combat Hostiles . | . . . Parts Fried . | . . . Impact Corruptions . | . . . Robots Melted . | . . . Combat Hostiles . | . . . Parts Melted 1 | . . 1 Heat Transferred 754 | . 25 729 Parts Sabotaged . | . . . Parts Stolen . | . . . Parts Stripped . | . . . Power Chain Reactions . | . . . Missiles Intercepted . | . . . Alert | -11 -10 -9 ------- Run | Scr Mat Mat Peak Influence 165 | . 165 163 Initial 37 | . . 37 Average 86 | . 66 115 Maximum Alert Level . | . . . Low Security (%) 100 | 100 100 100 Level 1 . | . . . Level 2 . | . . . Level 3 . | . . . Level 4 . | . . . Level 5 . | . . . High Security . | . . . Max Security . | . . . Squads Dispatched 2 | . 1 1 Investigation 2 | . 1 1 Extermination . | . . . Reinforcement . | . . . Assault . | . . . Garrison . | . . . Intercept . | . . . Construction Impeded . | . . . Haulers Reinforced . | . . . Stealth | -11 -10 -9 --------- Run | Scr Mat Mat Distress Signals 2 | . 1 1 Communications Jammed . | . . . Distress Signals . | . . . Times Spotted 28 | . 12 16 Peak Tracking Total 6 | . 4 6 Tactical Retreats 3 | . 2 1 Traps | -11 -10 -9 ------- Run | Scr Mat Mat Traps Triggered . | . . . Indirectly . | . . . Trap Hack Attempts . | . . . Triggered . | . . . Disarmed . | . . . Reprogrammed . | . . . Reused . | . . . Traps Extracted . | . . . Installed . | . . . Triggered . | . . . Machines | -11 -10 -9 ---------- Run | Scr Mat Mat Machines Disabled . | . . . Max in Single Turn . | . . . Machines Sabotaged . | . . . Garrisons Compromised . | . . . Overloaded Fab Kills . | . . . Fab Network Shutdowns . | . . . Hacking | -11 -10 -9 --------- Run | Scr Mat Mat Machines Accessed 7 | . 5 2 Terminals 4 | . 4 . Fabricators . | . . . Repair Stations 2 | . 1 1 Recycling Units 1 | . . 1 Scanalyzers . | . . . Garrison Access . | . . . Total Hacks 25 | . 19 6 Successful 14 | . 9 5 Failed 11 | . 10 1 Catastrophic 2 | . 2 . Database Lockouts . | . . . Manual . | . . . Terminals 17 | . 17 . Fabricators . | . . . Repair Stations 5 | . 2 3 Recycling Units 3 | . . 3 Scanalyzers . | . . . Garrison Access . | . . . Terminal Hacks 7 | . 7 . Branch Access Points 1 | . 1 . Alert Level 1 | . 1 . Locate Traps 1 | . 1 . Security Status 1 | . 1 . Patrol Status 1 | . 1 . Hauler Manifests 1 | . 1 . Registered Components 1 | . 1 . Fabricator Hacks . | . . . Repair Station Hacks 4 | . 2 2 Scan Component 2 | . 1 1 Repair 2 | . 1 1 Recycling Unit Hacks 3 | . . 3 Recycle Component 1 | . . 1 Process 1 | . . 1 Report Inventory 1 | . . 1 Scanalyzer . | . . . Garrison Access Hacks . | . . . Unauthorized Hacks . | . . . Terminals . | . . . Fabricators . | . . . Repair Stations . | . . . Recycling Units . | . . . Scanalyzers . | . . . Garrison Access . | . . . Data Cores Recovered . | . . . Used . | . . . Hacking Detections 5 | . 4 1 Full Trace Events 4 | . 3 1 Feedback Events . | . . . Feedback Blocked . | . . . Robot Schematics Acquired . | . . . Robots Built . | . . . Matter . | . . . Time . | . . . Total Robot Build Rating . | . . . Part Schematics Acquired . | . . . Parts Built . | . . . Matter . | . . . Time . | . . . Total Part Build Rating . | . . . Parts Repaired 2 | . 1 1 Time 58 | . 26 32 Parts Recycled 1 | . . 1 Recycled Matter . | . . . Retrieved Matter . | . . . Retrieved Components . | . . . Parts Scanalyzed . | . . . Part Schematics Acquired . | . . . Parts Damaged . | . . . Bothacking | -11 -10 -9 ------------ Run | Scr Mat Mat Used RIF Installer . | . . . Robots Hacked . | . . . Non-combat . | . . . Combat . | . . . Robot Hacks Applied . | . . . Relay Couplers Released . | . . . Robots Rewired . | . . . Allies Hacked . | . . . Hacks Repelled . | . . . Allies | -11 -10 -9 -------- Run | Scr Mat Mat Total Allies . | . . . Largest Group . | . . . Highest-Rated Group . | . . . Highest-Rated Ally . | . . . Total Orders . | . . . Ally Attacks . | . . . Total Damage . | . . . Kills . | . . . Allies Corrupted . | . . . Allies Melted . | . . . Intel | -11 -10 -9 ------- Run | Scr Mat Mat Robot Analysis Total . | . . . Derelict Logs Recovered . | . . . Drone Launches . | . . . Drone Recoveries . | . . . Exploration | -11 -10 -9 ------------- Run | Scr Mat Mat Turns Passed 1029 | 34 534 461 Spaces Moved 529 | 29 276 224 Core 39 | . . 39 Treads . | . . . Legs 490 | 29 276 185 Wheels . | . . . Hover . | . . . Flight . | . . . Fastest Speed 100 | 120 120 100 Average Speed 120 | 120 120 121 Slowest Speed 180 | 120 150 180 Overloaded Moves . | . . . Propulsion Burnouts . | . . . Robots Hopped . | . . . Cave-ins Triggered . | . . . Exploration Rate (%) 23 | 3 48 19 Regions Visited 2 Branch Regions . Pre-discovered Areas . | . . . Known Exits Taken . | . . . Unknown Exits Taken 2 | 1 1 . Scrap Searched . | . . . Spaces Dug . | . . . Terrain Destroyed . | . . . Melee . | . . . Projectile . | . . . AOE . | . . . Terrain Rammed . | . . . Walls Destroyed . | . . . Machines Disabled . | . . . Actions | -11 -10 -9 --------- Run | Scr Mat Mat Total 742 | 28 386 328 Wait 49 | . 31 18 Move 527 | 28 275 224 Hop . | . . . Pick Up 13 | . 10 3 Fast Attach 13 | . 4 9 Attach 11 | . 4 7 Detach 2 | . . 2 Swap 11 | . 1 10 Drop 9 | . 9 . Fire 103 | . 52 51 Melee . | . . . Ram 2 | . . 2 Kick 2 | . . 2 Crush . | . . . Escape Stasis . | . . . Rewire . | . . . Trap . | . . . Miscellaneous . | . . . Route ------- -11/Scrapyard -10/Materials (discovered 3 exits: *Mat / Min x2) -9/Materials History --------- Turn | Location | Event 1 | -11/Scrapyard | Discovered new exit (range 3) 35 | -11/Scrapyard | Entered Materials 353 | -10/Materials | Build established: Mutant 360 | -10/Materials | Lost 3 parts (2n1w) 386 | -10/Materials | Identified exit to Mines 428 | -10/Materials | Discovered new exit (range 15) 531 | -10/Materials | Repaired Sml. Battery 569 | -10/Materials | Entered another Materials area 569 | -9/Materials | Evolved 2 slots: Propulsion x1, Utility x1 713 | -9/Materials | Lost 8 parts (2p2n4w) 829 | -9/Materials | Repaired Hvy. Assault Rifle 996 | -9/Materials | Core integrity fell below 50% 1030 | -9/Materials | Self-destructed Last Messages --------------- 00906_ Acquired Med. Storage Unit. 00924_ Slammed into U-05 Engineer. 00926_ Kicked U-05 Engineer out of the way. 00964_ K-01 Serf cleans the Material Processor. 00970_ G-34 Mercenary destroyed. 00971_ K-01 Serf collects debris. 00976_ Knocked back. 00977_ R-06 Scavenger collects Ion Engine. 00980_ U-05 Engineer builds a Door. 00982_ R-06 Scavenger collects Heat Sink. 00985_ B-36 Bruiser destroyed. 00985_ R-06 Scavenger collects Sml. Laser. 00989_ Hvy. EM Pulse Gun destroyed. 00990_ K-01 Serf collects debris. 01001_ G-34 Mercenary destroyed. 01003_ Acquired 60 matter. 01003_ K-01 Serf collects debris. 01008_ Acquired Hammer. 01011_ K-01 Serf collects debris. 01014_ Acquired Particle Gun. Map ----- +----------------------------------------------------+ | ?????????????????????????????????????????????????? | | ?????????????????????????????????????????????????? | | ?????????????????????????????????????????????????? | | ?????????????????????????????????????????????????? | | ?????????????????????????????????????????????????? | | ?????????????????????????????????????????????????? | | ?????????????????????????????????????????????????? | | ?????????????????????????????????????????????????? | | ?????????????????????????????????????????????????? | | ?????????????????????????????????????????????????? | | ?????????????????????????????????????????????????? | | ?????????????????????????????????????????????????? | | ?????????????????????????????????????????????????? | | ?????????????????????????????????????????????????? | | ?????????????????????????????????????????????????? | | ???????????????????? ??????????????????????????? | | ??????????????????? ??????????????????????????? | | ???????????????????# ???????????????????? ???? | | ???????????????????# #???????????????????# ???? | | ???????????????????# #???????????????????# #??? | | ???????????????????# ##########??????????# ??? | | ???????????????????# #[ #??????????# #??? | | ???????????????????# # """ #??????????# #??? | | ???????????????????# # """""#??######### #??? | | ???????????????????# # """""#??# ## #??? | | ???????????????????# ^# @ """""#??# """## #??? | | ???????????????????# #* """ #??# """## #?#? | | ???????????????????# #% ! #??# """## #?# | | ???????????????????# # ! #??# ## #?# | | ???????????????????# k%= #???? ## ### | | ??????????+#+####### ##########??####+### # | | ?????????# ############# # | | ??????"" / + | | ????? # ################## # | | ?????????### ?????????????????# # # | | ???????????# ?????????????????#! !## ## | | ???????????# ?????????????????#! !## ## | | ???????????# ??????????????????##!!! ### ## | | ???????????# ???????????????????######?# ### | | ???????????# ??????????????????????????# #?? | | ???????????# ????????????????????????### #?? | | ??????????? ?????????????????######### # #?? | | ?????????? ?????????????????# # #?? | | ????????? ?????????????????# """ !!! # ### | | ???????????#####?????????????????# """ !!! # | | ?????????????????????????????????# """ !!! + | | ?????????????????????????????????# # | | ?????????????????????????????????# # """ | | ?????????????????????????????????# # "R | | ?????????????????????????????????# # """ | +----------------------------------------------------+ Best States ------------- Heat Dissipation 42 Energy Generation 14 Energy Capacity 365 Matter Stores 300 Matter Capacity 300 Sight Range 18 Terrain Scan Density 10 Evasion (%) 40 Item Schematics ----------------- None Robot Schematics ------------------ None Fabricated ------------ Nothing Alien Tech Used ----------------- None Achievements -------------- None Challenges ------------ None Game ------ Seed AntimissileTeslaBlaster Manual? 0 Play Time 00:25:54 Cumulative 28.8 hours Start 2021.07.17 @ 15:57:23 End 2021.07.17 @ 16:22:02 Sessions 1 Manual Loads 0 Difficulty Rogue Special Mode Halloween2020/ForbiddenLore Game No. 43 Rogue 43 Adventurer 0 Explorer 0 Win Type - Total 0 Types 0/0/0/0/0/0/0/0/0 Lore% 25 Gallery% 30 Achievement% 24 Wizard Run 0 Options --------- ASCII 0 Keyboard 1 Movement Vi Keybinds 0 Fullscreen 1 Font 18/SmallcapsGlow Map View 76x50 Tactical HUD 1 Map Filters NONE Filters NONE Steam 1 RUN: 83b075f2-9bbc-477e-afe9-8994b27add66